bitfinex/quotes_BTCUSD_20251217
["timestamp","ask_amount","ask_price","bid_price","bid_amount"]
[1765982424349,0.0004,87654.0,87653.0,0.55434807]
[1765982424538,0.0004,87654.0,87653.0,0.14950346]
[1765982424775,0.0004,87654.0,87653.0,0.1199951]
[1765982424984,0.0004,87654.0,87653.0,0.12532727]
[1765982425194,0.0004,87654.0,87653.0,0.14768727]
[1765982425626,0.0004,87654.0,87653.0,0.44108326]
[1765982425850,0.0004,87654.0,87653.0,0.43338755]
[1765982426264,2.4e-06,87658.0,87657.0,0.4096536]
[1765982426472,2.4e-06,87658.0,87657.0,0.41101714]
[1765982426680,2.4e-06,87658.0,87657.0,1.41101714]
[1765982427634,2.4e-06,87658.0,87657.0,0.42937714]
[1765982428211,2.4e-06,87658.0,87657.0,0.97911714]
[1765982428355,2.4e-06,87658.0,87657.0,0.99747714]
[1765982428555,2.4e-06,87658.0,87657.0,1.39947714]
[1765982429318,0.01140068,87714.0,87695.0,0.43035473]
[1765982429544,0.01180302,87696.0,87695.0,0.11363156]
[1765982429743,0.0004,87696.0,87694.0,0.22806546]
[1765982430016,0.0004,87696.0,87695.0,0.19223379]
[1765982430721,0.0004,87696.0,87695.0,0.19359733]
[1765982431820,0.0004,87696.0,87695.0,0.21539733]
[1765982432095,0.0004,87696.0,87695.0,0.21439733]
[1765982432561,0.0004,87696.0,87695.0,0.21539733]
[1765982432860,0.0004,87696.0,87695.0,0.17296733]
[1765982433061,0.0004,87696.0,87695.0,0.14653733]
[1765982433267,0.0004,87696.0,87695.0,0.12437379]
[1765982433505,0.0004,87696.0,87670.0,0.53818091]
[1765982433506,0.01140589,87674.0,87671.0,0.01140628]
[1765982433677,0.01140589,87674.0,87673.0,0.11363156]
[1765982433837,0.01140575,87675.0,87674.0,0.11363156]
[1765982434020,0.22809698,87682.0,87681.0,0.11363156]
[1765982434226,0.23950192,87682.0,87681.0,0.11363156]
[1765982434464,0.01140484,87682.0,87681.0,0.11363156]
[1765982434837,0.22810999,87677.0,87676.0,0.11363156]
[1765982435038,0.01140497,87681.0,87674.0,0.00136354]
[1765982435039,0.23951002,87679.0,87678.0,0.11363156]
[1765982435239,0.01140523,87679.0,87678.0,0.11363156]
[1765982435441,0.23949841,87684.0,87683.0,0.11363156]
[1765982435648,0.01140575,87675.0,87672.0,0.12530829]
[1765982435857,0.2544504,87673.0,87672.0,0.01167673]
[1765982436062,0.03894,87680.0,87650.0,0.11363156]
[1765982436063,0.01140836,87655.0,87650.0,0.11363156]
[1765982436331,0.0114081,87657.0,87652.0,0.01140875]
[1765982436481,0.0114081,87657.0,87640.0,0.55898091]
[1765982436482,0.22820369,87641.0,87640.0,0.0208]
[1765982436688,0.01141109,87634.0,87633.0,0.11363156]
[1765982436882,0.23964679,87629.0,87628.0,0.11363156]
[1765982437065,0.01141265,87622.0,87621.0,0.11363156]
[1765982437622,0.01141031,87640.0,87636.0,0.01141083]
[1765982437829,0.03894,87661.0,87641.0,0.01141018]
[1765982438024,0.03894,87661.0,87649.0,0.11363156]
[1765982438025,0.01140901,87650.0,87649.0,0.11363156]
[1765982438329,0.01140771,87660.0,87655.0,0.22816561]
[1765982438518,0.01140771,87660.0,87657.0,0.11363156]
[1765982438519,0.22816135,87658.0,87657.0,0.11363156]
[1765982438725,0.01140784,87659.0,87658.0,0.11363156]
[1765982439103,0.002,87650.0,87649.0,0.12668876]
[1765982439528,0.002,87650.0,87644.0,0.01140979]
[1765982439529,0.23961387,87641.0,87640.0,0.11363156]
[1765982439732,0.23964203,87631.0,87630.0,0.11363156]
[1765982439951,0.23963614,87633.0,87630.0,0.11363156]
[1765982440150,0.23963614,87633.0,87632.0,0.11363156]
[1765982440353,0.22823234,87630.0,87628.0,0.01171082]
[1765982440645,0.01141109,87634.0,87628.0,0.01171082]
[1765982440646,0.0114094,87647.0,87640.0,0.01141031]
[1765982440871,0.01140927,87648.0,87640.0,0.01141031]
[1765982440872,0.01140927,87648.0,87642.0,0.23960973]
[1765982441073,0.01140784,87659.0,87649.0,0.22818021]
[1765982441422,0.01140732,87663.0,87658.0,0.01140797]
[1765982441622,0.01140732,87663.0,87654.0,0.02309978]
[1765982441623,0.01140797,87658.0,87654.0,0.02309978]
[1765982441760,0.23957154,87657.0,87654.0,0.01169129]
[1765982441954,0.22816821,87655.0,87653.0,0.12532285]
[1765982442168,0.01140497,87681.0,87664.0,0.22814382]
[1765982442370,0.01140497,87681.0,87678.0,0.05701978]
[1765982442371,0.01140523,87679.0,87678.0,0.05701978]
[1765982442781,0.01140523,87679.0,87673.0,0.11363156]
[1765982442782,0.23952369,87674.0,87673.0,0.11363156]
[1765982443216,0.01140589,87674.0,87673.0,0.11363156]
[1765982443418,0.23951969,87676.0,87675.0,0.11363156]
[1765982443622,0.23951091,87679.0,87676.0,0.11363156]
[1765982443771,0.01140406,87688.0,87684.0,0.22809057]
[1765982443972,0.23948904,87687.0,87686.0,0.11363156]
[1765982444214,0.23950039,87683.0,87682.0,0.11363156]
[1765982444497,0.23951567,87677.0,87675.0,0.11363156]
[1765982444664,0.01140549,87677.0,87676.0,0.12531257]
[1765982444865,0.23010479,87679.0,87678.0,0.11363156]
[1765982445071,0.0114051,87680.0,87673.0,0.01168101]
[1765982445384,0.0114051,87680.0,87679.0,0.11363156]
[1765982446914,0.2281178,87674.0,87673.0,0.01167946]
[1765982447141,0.23953567,87670.0,87669.0,0.11363156]
[1765982447349,0.01140562,87676.0,87669.0,0.11363156]
[1765982447350,0.00049901,87674.0,87673.0,0.11363156]
[1765982447550,0.00049901,87674.0,87673.0,0.12531426]
[1765982447745,0.00049901,87674.0,87673.0,0.1266778]
[1765982447986,0.00049901,87674.0,87673.0,0.01304624]
[1765982448187,0.00049901,87674.0,87673.0,0.1266778]
[1765982448592,0.00049901,87674.0,87673.0,0.1518878]
[1765982448791,0.00049901,87674.0,87673.0,0.2128778]
[1765982448996,0.00049901,87674.0,87673.0,0.2311978]
[1765982449228,0.00049901,87674.0,87673.0,0.22139124]
[1765982449753,0.00049901,87674.0,87673.0,0.2321978]
[1765982450107,0.00049901,87674.0,87673.0,0.2205151]
[1765982450814,0.00049901,87674.0,87673.0,1.2195151]
[1765982451022,0.0004,87728.0,87720.0,0.01973]
[1765982451234,0.0004,87728.0,87727.0,0.26923998]
[1765982451450,0.0004,87728.0,87727.0,0.40944508]
[1765982451870,0.0004,87728.0,87727.0,0.36818508]
[1765982452098,0.0004,87728.0,87727.0,0.34297508]
[1765982452481,0.0004,87728.0,87727.0,0.1159951]
[1765982452701,0.0004,87728.0,87727.0,0.12713707]
[1765982452978,0.0004,87728.0,87727.0,0.19360707]
[1765982453184,0.0004,87728.0,87727.0,0.15234707]
[1765982453944,0.0004,87728.0,87727.0,0.19360707]
[1765982454361,0.0004,87728.0,87727.0,0.19407568]
[1765982454795,0.0004,87728.0,87727.0,0.21239568]
[1765982455197,0.0004,87728.0,87727.0,0.21139568]
[1765982455608,0.0004,87728.0,87727.0,0.21539568]
[1765982455813,0.0004,87728.0,87727.0,0.21139568]
[1765982456171,0.0004,87728.0,87727.0,0.21539568]
[1765982456627,0.0004,87728.0,87727.0,0.19707568]
[1765982457042,0.0004,87728.0,87727.0,0.21539568]
[1765982457043,0.00208296,87728.0,87727.0,0.21539568]
[1765982457617,0.00208296,87728.0,87727.0,0.21139568]
[1765982458018,0.00208296,87728.0,87727.0,0.19707568]
[1765982458226,0.00208296,87728.0,87714.0,0.11363156]
[1765982458488,0.01179886,87728.0,87727.0,0.11363156]
[1765982458620,0.0004,87728.0,87727.0,0.11363156]
[1765982458819,0.0004,87728.0,87727.0,0.19711269]
[1765982459046,0.0004,87728.0,87727.0,0.19311269]
[1765982459253,0.01140107,87711.0,87708.0,0.01973]
[1765982459426,0.23942264,87711.0,87710.0,0.11363156]
[1765982459775,0.01140029,87717.0,87716.0,0.11363156]
[1765982459952,0.23940626,87717.0,87716.0,0.11363156]
[1765982460158,0.22801897,87712.0,87711.0,0.01165541]
[1765982460322,0.01139873,87729.0,87725.0,0.01139925]
[1765982460526,0.04204214,87780.0,87725.0,0.01139925]
[1765982460527,0.0004,87731.0,87727.0,0.12475346]
[1765982460731,0.0004,87728.0,87727.0,0.19311269]
[1765982460943,0.0004,87728.0,87727.0,0.19411269]
[1765982461143,0.0004,87728.0,87727.0,0.48481269]
[1765982461351,0.0004,87728.0,87727.0,0.4721651]
[1765982461560,0.0004,87728.0,87727.0,0.4731651]
[1765982461858,0.0004,87752.0,87727.0,0.4731651]
[1765982461859,0.0004,87752.0,87732.0,0.02521]
[1765982462056,0.0004,87752.0,87751.0,0.41887919]
[1765982462313,0.0004,87752.0,87735.0,0.22795821]
[1765982462512,0.0004,87752.0,87738.0,0.11363156]
[1765982462827,0.0004,87752.0,87751.0,0.40801919]
[1765982463058,0.0004,87752.0,87751.0,0.40938273]
[1765982463268,0.0004,87752.0,87751.0,0.1149951]
[1765982463468,0.0004,87752.0,87751.0,0.11363156]
[1765982463710,0.0004,87752.0,87751.0,0.12526357]
[1765982463950,0.01139692,87743.0,87740.0,0.11363156]
[1765982464158,0.01139692,87743.0,87741.0,0.12527032]
[1765982464365,0.23933351,87744.0,87738.0,0.11363156]
[1765982464366,0.23934624,87739.0,87738.0,0.11363156]
[1765982464802,0.01139821,87733.0,87732.0,0.11363156]
[1765982465037,0.01139795,87735.0,87729.0,0.22797254]
[1765982465229,0.01140107,87711.0,87700.0,0.01973]
[1765982465387,0.01140042,87716.0,87700.0,0.01973]
[1765982465388,0.01140055,87715.0,87702.0,0.11363156]
[1765982465712,0.01139757,87738.0,87730.0,0.0113986]
[1765982465886,0.05185,87744.0,87720.0,0.11363156]
[1765982465887,0.001,87739.0,87738.0,0.11363156]
[1765982466108,0.23934138,87741.0,87738.0,0.11363156]
[1765982466109,0.22794712,87740.0,87738.0,0.11363156]
[1765982466291,0.22798518,87725.0,87724.0,0.1149951]
[1765982466471,0.01418,87718.0,87716.0,0.22800757]
[1765982466815,0.23937388,87729.0,87728.0,0.11363156]
[1765982466971,0.01139821,87733.0,87731.0,0.11363156]
[1765982467187,0.23936346,87733.0,87731.0,0.11363156]
[1765982467377,0.23937251,87730.0,87729.0,0.11363156]
[1765982467581,0.01140068,87714.0,87706.0,0.23943436]
[1765982467810,0.01140133,87709.0,87708.0,0.11363156]
[1765982468016,0.01140068,87714.0,87708.0,0.12503302]
[1765982468217,0.01140003,87719.0,87717.0,0.11363156]
[1765982468417,0.05185,87744.0,87730.0,0.0113986]
[1765982468593,0.01139782,87736.0,87732.0,0.01139834]
[1765982468802,0.22796179,87734.0,87732.0,0.0116437]
[1765982469005,0.22796179,87734.0,87716.0,0.24636623]
[1765982469006,0.01836,87741.0,87738.0,0.01139757]
[1765982469202,0.01139666,87745.0,87742.0,0.01139705]
[1765982469394,0.01139666,87745.0,87739.0,0.0116398]
[1765982469395,0.0004,87752.0,87750.0,0.22791944]
[1765982469599,0.0004,87752.0,87751.0,0.12526382]
[1765982469810,0.0004,87752.0,87751.0,0.11363156]
[1765982470469,0.0004,87752.0,87751.0,0.01163226]
[1765982470650,0.22792956,87747.0,87745.0,0.01163226]
[1765982470838,0.23937884,87728.0,87726.0,0.11363156]
[1765982471000,0.23940353,87718.0,87717.0,0.11363156]
[1765982471229,0.22795296,87738.0,87732.0,0.01139834]
[1765982471462,0.22796179,87734.0,87732.0,0.1149951]
[1765982471627,0.01139938,87724.0,87723.0,0.11363156]
[1765982471839,0.01139886,87728.0,87721.0,0.01139977]
[1765982472142,0.0113986,87730.0,87727.0,0.11363156]
[1765982472345,0.22797626,87729.0,87728.0,0.01164694]
[1765982472575,0.22799297,87722.0,87721.0,0.1252785]
[1765982472775,0.24183077,87719.0,87717.0,0.11363156]
[1765982473101,0.01140003,87719.0,87718.0,0.11363156]
[1765982473242,0.01140055,87715.0,87714.0,0.11363156]
[1765982473463,0.01140016,87718.0,87715.0,0.12503211]
[1765982473665,0.23944574,87703.0,87696.0,0.01140302]
[1765982473863,0.01140159,87707.0,87706.0,0.11363156]
[1765982474068,0.01140107,87711.0,87706.0,0.11363156]
[1765982474069,0.01140133,87709.0,87706.0,0.2280341]
[1765982474341,0.01140133,87709.0,87694.0,0.01973]
[1765982474342,0.23944768,87702.0,87695.0,0.01140315]
[1765982474491,0.23944537,87698.0,87697.0,0.11363156]
[1765982474656,0.01140146,87708.0,87700.0,0.0114025]
[1765982474657,0.01139,87706.0,87700.0,0.0114025]
[1765982474858,0.01128,87713.0,87704.0,0.01140198]
[1765982475112,0.22801933,87712.0,87710.0,0.0114012]
[1765982475290,0.23940768,87717.0,87713.0,0.01140081]
[1765982475291,0.01140042,87716.0,87713.0,0.01140081]
[1765982475491,0.01139899,87727.0,87717.0,0.01140029]
[1765982475692,0.01139964,87722.0,87718.0,0.01165189]
[1765982475895,0.02492,87719.0,87718.0,0.01165189]
[1765982476063,0.02492,87719.0,87690.0,0.36531685]
[1765982476064,0.0114038,87690.0,87681.0,0.23950396]
[1765982476261,0.01140315,87695.0,87692.0,0.11363156]
[1765982476465,0.03856,87708.0,87692.0,0.11363156]
[1765982476466,0.66718685,87720.0,87699.0,0.01140263]
[1765982476678,0.23943333,87708.0,87707.0,0.11363156]
[1765982476883,0.22802913,87709.0,87707.0,0.11363156]
[1765982477113,0.22802913,87709.0,87700.0,0.01166256]
[1765982477114,0.06348,87701.0,87700.0,0.01166256]
[1765982477418,0.01140276,87698.0,87693.0,0.02306855]
[1765982477634,0.01140289,87697.0,87693.0,0.02306855]
[1765982477865,0.22806432,87695.0,87693.0,0.01166514]
[1765982478071,0.23945696,87699.0,87644.0,1.2886727]
[1765982478072,0.01140484,87682.0,87657.0,0.02847706]
[1765982478268,0.01140484,87682.0,87676.0,0.11363156]
[1765982478269,0.22810999,87677.0,87676.0,0.11363156]
[1765982478614,0.01140758,87661.0,87657.0,0.14210862]
[1765982478859,0.23950348,87682.0,87675.0,0.01140575]
[1765982479167,0.23952915,87672.0,87671.0,0.11363156]
[1765982479390,0.23952915,87672.0,87660.0,0.00136354]
[1765982479391,0.22814186,87665.0,87662.0,0.01140745]
[1765982479546,0.2281256,87671.0,87666.0,0.22813656]
[1765982479747,0.22812997,87670.0,87665.0,0.01140706]
[1765982479951,0.0114068,87667.0,87666.0,0.01168673]
[1765982480152,0.01140628,87671.0,87666.0,0.01168673]
[1765982480334,0.01140641,87670.0,87666.0,0.01168673]
[1765982480537,0.23953431,87671.0,87667.0,0.0114068]
[1765982480733,0.22813538,87668.0,87666.0,0.01168673]
[1765982481062,0.22815162,87661.0,87657.0,0.23956903]
[1765982481263,0.22815162,87661.0,87658.0,0.11363156]
[1765982481455,0.22815162,87661.0,87658.0,0.02309939]
[1765982481661,0.01140667,87668.0,87658.0,0.02309939]
[1765982481836,0.22811062,87677.0,87658.0,0.02309939]
[1765982481837,0.00199998,87710.0,87678.0,0.2281067]
[1765982482046,0.01140224,87702.0,87699.0,0.01140263]
[1765982482278,0.22804593,87702.0,87700.0,0.01166514]
[1765982482456,0.22805017,87700.0,87699.0,0.00136354]
[1765982482802,0.22804757,87701.0,87699.0,0.00136354]
[1765982483005,0.23945267,87700.0,87697.0,0.01166646]
[1765982483213,0.01140445,87685.0,87678.0,0.01140536]
[1765982483399,0.01140458,87684.0,87680.0,0.0114051]
[1765982483553,0.22810349,87680.0,87678.0,0.00136354]
[1765982483957,0.22810349,87680.0,87664.0,0.01836]
[1765982483958,0.01140758,87661.0,87654.0,0.01140849]
[1765982484159,0.01140836,87655.0,87650.0,0.01140901]
[1765982484356,0.01140901,87650.0,87646.0,0.11363156]
[1765982484582,0.22813999,87666.0,87659.0,0.01140784]
[1765982484819,0.2907,87676.0,87650.0,0.37672586]
[1765982485001,0.01836,87680.0,87652.0,0.01140875]
[1765982485002,0.23957392,87656.0,87652.0,0.01140875]
[1765982485330,0.01140823,87656.0,87653.0,0.01169545]
[1765982485496,0.11492016,87668.0,87659.0,0.01140784]
[1765982485497,0.01140719,87664.0,87659.0,0.01140784]
[1765982485697,0.2281509,87662.0,87660.0,0.01169064]
[1765982485865,0.63285012,87681.0,87656.0,0.01140823]
[1765982486079,0.47536206,87692.0,87656.0,0.01140823]
[1765982486080,0.01140693,87666.0,87663.0,0.01140732]
[1765982486284,0.23954789,87666.0,87664.0,0.01168855]
[1765982486481,0.01140706,87665.0,87662.0,0.01168855]
[1765982486688,0.22817245,87653.0,87645.0,0.01140966]
[1765982486924,0.01140823,87656.0,87651.0,0.01140888]
[1765982487130,0.01140823,87656.0,87650.0,0.01140901]
[1765982487307,0.0114081,87657.0,87653.0,0.05701978]
[1765982487514,0.01836,87665.0,87662.0,0.01140745]
[1765982487692,0.22815228,87661.0,87656.0,0.23957174]
[1765982487899,0.01836,87672.0,87659.0,0.01140784]
[1765982487900,0.01140719,87664.0,87659.0,0.01140784]
[1765982488100,0.01140784,87659.0,87656.0,0.01277177]
[1765982488370,0.001,87662.0,87659.0,0.01140784]
[1765982488590,0.001,87662.0,87661.0,0.22815162]
[1765982488796,0.22813601,87667.0,87661.0,0.22815162]
[1765982488994,0.01140641,87670.0,87667.0,0.23954202]
[1765982489165,0.22812369,87672.0,87668.0,0.01168595]
[1765982489369,0.22812938,87670.0,87668.0,0.01168595]
[1765982489625,0.30210602,87673.0,87670.0,0.22812804]
[1765982489626,0.2907,87673.0,87670.0,0.22812804]
[1765982489797,0.22812005,87674.0,87668.0,0.22813201]
[1765982489798,0.01140628,87671.0,87668.0,0.01140667]
[1765982489997,0.01140628,87671.0,87665.0,0.01140706]
[1765982490227,0.01140549,87677.0,87671.0,0.01140628]
[1765982490444,0.00024946,87682.0,87680.0,0.22810051]
[1765982490650,0.22810487,87679.0,87676.0,0.01140562]
[1765982490862,0.2395101,87679.0,87673.0,0.01140602]
[1765982491068,0.22834705,87682.0,87679.0,0.01140523]
[1765982491272,0.00024946,87682.0,87679.0,0.01140523]
[1765982491481,0.01140589,87674.0,87664.0,0.01140719]
[1765982491685,0.01140602,87673.0,87661.0,0.01140758]
[1765982491905,0.01268,87669.0,87668.0,0.22813341]
[1765982492124,0.2281469,87663.0,87661.0,0.00136354]
[1765982492401,0.22814902,87662.0,87661.0,0.01169025]
[1765982492621,0.01140953,87646.0,87641.0,0.01141018]
[1765982492822,0.0114094,87647.0,87636.0,0.06843061]
[1765982492823,0.01140966,87645.0,87642.0,0.22819986]
[1765982492954,0.01140979,87644.0,87641.0,0.01141018]
[1765982493174,0.01140953,87646.0,87642.0,0.01141005]
[1765982493375,0.01244,87648.0,87645.0,0.01140966]
[1765982493719,0.01140953,87646.0,87644.0,0.22819562]
[1765982493926,0.2281761,87652.0,87644.0,0.22819562]
[1765982493927,0.2281761,87652.0,87647.0,0.0114094]
[1765982494132,0.01140992,87643.0,87637.0,0.0114107]
[1765982494333,0.01141018,87641.0,87634.0,0.01141109]
[1765982494465,0.01141057,87638.0,87632.0,0.01141135]
[1765982494672,0.01141109,87634.0,87633.0,0.01170795]
[1765982494899,0.01234,87630.0,87628.0,0.22823754]
[1765982495103,0.01234,87630.0,87629.0,0.01171159]
[1765982495416,0.2396323,87635.0,87629.0,0.01171159]
[1765982495618,0.23962804,87636.0,87629.0,0.02312333]
[1765982495842,0.0237507,87637.0,87631.0,0.01141148]
[1765982496017,0.22821889,87636.0,87632.0,0.0117086]
[1765982496222,0.01141161,87630.0,87622.0,0.01141265]
[1765982496442,0.01141122,87633.0,87628.0,0.23964758]
[1765982496621,0.0237507,87637.0,87623.0,0.01141252]
[1765982496622,0.22823282,87630.0,87623.0,0.01141252]
[1765982496822,0.2396361,87633.0,87630.0,0.23964352]
[1765982497047,0.01141096,87635.0,87631.0,0.23964006]
[1765982497252,0.01234,87637.0,87633.0,0.01141122]
[1765982497472,0.01141226,87625.0,87618.0,0.01141317]
[1765982497885,0.01141226,87625.0,87560.0,2.87436566]
[1765982497886,0.01141461,87607.0,87604.0,0.011415]
[1765982498098,0.01141357,87615.0,87612.0,0.01141396]
[1765982498316,0.01141396,87612.0,87609.0,0.01172229]
[1765982498520,0.26474428,87611.0,87609.0,0.01172229]
[1765982498693,0.011415,87604.0,87598.0,0.02314135]
[1765982498891,0.01236,87605.0,87602.0,0.2397201]
[1765982499133,0.01375,87611.0,87609.0,0.2396999]
[1765982499301,0.01375,87611.0,87604.0,0.013415]
[1765982499302,0.01141448,87608.0,87604.0,0.013415]
[1765982499453,0.2397052,87608.0,87605.0,0.01172671]
[1765982499652,0.22829486,87606.0,87605.0,0.01172671]
[1765982500101,0.23971449,87605.0,87601.0,0.22830649]
[1765982500307,0.01141487,87605.0,87602.0,0.02314432]
[1765982500548,0.01141474,87606.0,87602.0,0.02314432]
[1765982500808,0.01141448,87608.0,87604.0,0.23971444]
[1765982501052,0.22829335,87607.0,87605.0,0.01172671]
[1765982501578,0.01375,87611.0,87584.0,0.01836]
[1765982501579,0.01141591,87597.0,87591.0,0.23974976]
[1765982501804,0.0114163,87594.0,87591.0,0.00136354]
[1765982502002,0.01191,87588.0,87584.0,0.01141761]
[1765982502184,0.30211604,87596.0,87590.0,0.22833611]
[1765982502324,0.22832759,87594.0,87587.0,0.01141721]
[1765982502533,0.01141643,87593.0,87590.0,0.01141682]
[1765982502738,0.2907,87596.0,87592.0,0.01141656]
[1765982502944,0.01141565,87599.0,87593.0,0.01141643]
[1765982503150,0.01141578,87598.0,87593.0,0.01141643]
[1765982503352,0.22832018,87597.0,87594.0,0.0114163]
[1765982503572,0.01141578,87598.0,87594.0,0.0114163]
[1765982503851,0.01141513,87603.0,87598.0,0.01141578]
[1765982504069,0.23972054,87602.0,87599.0,0.01173036]
[1765982504271,0.23972495,87601.0,87598.0,0.01173036]
[1765982504464,0.53041974,87603.0,87599.0,0.23972758]
[1765982504670,0.01141526,87602.0,87599.0,0.01141565]
[1765982504938,0.53041856,87603.0,87599.0,0.01141565]
[1765982504939,0.2907,87603.0,87600.0,0.22830794]
[1765982505098,0.23972149,87602.0,87599.0,0.01141565]
[1765982505298,0.001,87601.0,87600.0,0.01141552]
[1765982505504,0.001,87601.0,87600.0,0.23972352]
[1765982505681,0.01836,87605.0,87594.0,0.01277984]
[1765982505881,0.01141539,87601.0,87595.0,0.01173141]
[1765982506106,0.01141552,87600.0,87596.0,0.23973613]
[1765982506308,0.001,87602.0,87597.0,0.0231481]
[1765982506627,0.23972771,87600.0,87597.0,0.01173219]
[1765982506827,0.23973261,87598.0,87594.0,0.01309573]
[1765982507055,0.23973261,87598.0,87583.0,0.07521978]
[1765982507056,0.01141656,87592.0,87587.0,0.01141721]
[1765982507333,0.01141761,87584.0,87578.0,0.01141839]
[1765982507601,0.01141669,87591.0,87585.0,0.01141748]
[1765982507818,0.45652745,87618.0,87585.0,0.01141748]
[1765982507819,0.011415,87604.0,87599.0,0.01141565]
[1765982508021,0.01836,87602.0,87596.0,0.01141604]
[1765982508222,0.02977526,87602.0,87597.0,0.0117314]
[1765982508426,0.22831483,87599.0,87597.0,0.0117314]
[1765982508626,0.01141578,87598.0,87595.0,0.01141617]
[1765982508865,0.01141565,87599.0,87595.0,0.01173296]
[1765982509064,0.01141578,87598.0,87595.0,0.01173296]
[1765982509270,0.01141539,87601.0,87597.0,0.01141591]
[1765982509476,0.01141552,87600.0,87597.0,0.0117314]
[1765982509633,0.25808134,87602.0,87597.0,0.0117314]
[1765982509833,0.25808134,87602.0,87599.0,0.01141565]
[1765982509834,0.01836,87602.0,87599.0,0.01141565]
[1765982510167,0.28902571,87598.0,87597.0,0.0117314]
[1765982510350,0.01141695,87589.0,87586.0,0.01309719]
[1765982510543,0.01141669,87591.0,87587.0,0.23976049]
[1765982510742,0.01141682,87590.0,87588.0,0.01173805]
[1765982510969,0.22833917,87589.0,87588.0,0.01173805]
[1765982511172,0.22833917,87589.0,87578.0,0.22836785]
[1765982511173,0.01096,87579.0,87578.0,0.22836785]
[1765982511327,0.03646,87590.0,87576.0,0.01141865]
[1765982511328,0.23977658,87582.0,87577.0,0.01141852]
[1765982511543,0.01141787,87582.0,87577.0,0.01141852]
[1765982511755,0.22837612,87575.0,87573.0,0.00363354]
[1765982512159,0.22837828,87574.0,87573.0,0.00363354]
[1765982512364,0.22837612,87575.0,87573.0,0.23201418]
[1765982512617,0.22837594,87575.0,87573.0,0.00363354]
[1765982512813,0.22837828,87574.0,87573.0,0.00363354]
[1765982513023,0.01141852,87577.0,87573.0,0.01505258]
[1765982513240,0.01141852,87577.0,87574.0,0.01174691]
[1765982513456,0.01141643,87593.0,87581.0,0.22836003]
[1765982513670,0.01141669,87591.0,87581.0,0.22972357]
[1765982513877,0.01141708,87588.0,87584.0,0.23976954]
[1765982514080,0.01141774,87583.0,87579.0,0.23978348]
[1765982514280,0.01141761,87584.0,87580.0,0.23977947]
[1765982514660,0.01076,87594.0,87586.0,0.01141734]
[1765982514878,0.01836,87588.0,87587.0,0.24008178]
[1765982515109,0.01141513,87603.0,87595.0,0.01141617]
[1765982515250,0.01141539,87601.0,87598.0,0.01141578]
[1765982515451,0.01141539,87601.0,87599.0,0.22831287]
[1765982515452,0.23972345,87601.0,87599.0,0.22831287]
[1765982515652,0.01836,87604.0,87603.0,0.22830268]
[1765982515833,0.24666177,87604.0,87598.0,0.01141578]
[1765982516033,0.01836,87604.0,87603.0,0.22830268]
[1765982516653,0.01836,87604.0,87602.0,0.22830528]
[1765982516855,0.01836,87604.0,87603.0,0.22830268]
[1765982517061,0.2907,87609.0,87606.0,0.01141474]
[1765982517260,0.2907,87609.0,87606.0,0.02314054]
[1765982517507,0.01141461,87607.0,87604.0,0.0117258]
[1765982517710,0.003,87604.0,87603.0,0.25280671]
[1765982517925,0.003,87604.0,87595.0,0.28534291]
[1765982517926,0.0114163,87594.0,87585.0,0.22834945]
[1765982518044,0.02186617,87595.0,87591.0,0.23974827]
[1765982518253,0.02186617,87595.0,87592.0,0.01173518]
[1765982518534,0.25019487,87595.0,87592.0,0.01173518]
[1765982518648,0.01141604,87596.0,87591.0,0.01173518]
[1765982518649,0.22832879,87593.0,87591.0,0.01173518]
[1765982518853,0.22832879,87593.0,87581.0,0.05615]
[1765982518854,0.01141643,87593.0,87590.0,0.01173583]
[1765982519067,0.23978898,87577.0,87562.0,0.03795]
[1765982519289,0.22837828,87574.0,87567.0,0.01141982]
[1765982519483,0.01141852,87577.0,87571.0,0.0114193]
[1765982519747,0.23978961,87577.0,87574.0,0.2397951]
[1765982519898,0.01141852,87577.0,87574.0,0.01141891]
[1765982520098,0.2397904,87577.0,87574.0,0.01141891]
[1765982520326,0.22836722,87579.0,87575.0,0.01141878]
[1765982520327,0.01141826,87579.0,87575.0,0.01141878]
[1765982520531,0.22837567,87575.0,87573.0,0.00499708]
[1765982520853,0.25262828,87574.0,87573.0,0.00363354]
[1765982521029,0.22837828,87574.0,87573.0,0.00363354]
[1765982521235,0.28908828,87574.0,87573.0,0.00363354]
[1765982521434,0.59037515,87574.0,87573.0,0.00363354]
[1765982522052,0.2907,87574.0,87573.0,0.00363354]
[1765982522766,0.06071,87574.0,87573.0,0.00363354]
[1765982522999,0.22837601,87575.0,87573.0,0.00363354]
[1765982523170,0.22836043,87581.0,87575.0,0.01141878]
[1765982523345,0.01141721,87587.0,87582.0,0.01141787]
[1765982523346,0.2907,87585.0,87582.0,0.01141787]
[1765982523552,0.01141748,87585.0,87581.0,0.011418]
[1765982523754,0.01141787,87582.0,87577.0,0.01141852]
[1765982523958,0.22836083,87581.0,87578.0,0.25153017]
[1765982524119,0.01836,87587.0,87586.0,0.22834699]
[1765982524322,0.04038782,87587.0,87584.0,0.22835158]
[1765982524541,0.01836,87587.0,87584.0,0.23976919]
[1765982524742,0.002,87585.0,87584.0,0.24113273]
[1765982525128,0.02897168,87597.0,87595.0,0.22832315]
[1765982525337,0.22837828,87574.0,87565.0,0.11363156]
[1765982525572,0.01836,87583.0,87581.0,0.22835794]
[1765982525740,0.01141669,87591.0,87588.0,0.01141708]
[1765982525892,0.01141682,87590.0,87588.0,0.22834151]
[1765982526094,0.01836,87596.0,87594.0,0.22832562]
[1765982526320,0.0114163,87594.0,87588.0,0.00136354]
[1765982526530,0.22833694,87590.0,87588.0,0.00136354]
[1765982526730,0.23975109,87591.0,87588.0,0.00136354]
[1765982526972,0.01141643,87593.0,87590.0,0.01141682]
[1765982527204,0.02435,87591.0,87590.0,0.01173622]
[1765982527405,0.01141865,87576.0,87573.0,0.01537256]
[1765982527536,0.01063253,87575.0,87573.0,0.01537256]
[1765982527778,0.3588322,87574.0,87573.0,0.00363354]
[1765982528354,0.70213064,87574.0,87573.0,0.00363354]
[1765982528965,0.58721048,87574.0,87573.0,0.00363354]
[1765982529171,0.58721048,87574.0,87573.0,0.00463354]
[1765982530100,0.54807048,87574.0,87573.0,0.00463354]
[1765982530234,0.57030048,87574.0,87573.0,0.00463354]
[1765982530437,0.60335048,87574.0,87573.0,0.00363354]
[1765982530649,0.57230048,87574.0,87573.0,0.00363354]
[1765982530851,0.55007048,87574.0,87573.0,0.00363354]
[1765982531054,0.57030048,87574.0,87573.0,0.00363354]
[1765982531275,0.25837048,87574.0,87573.0,0.00363354]
[1765982531477,0.0299922,87574.0,87573.0,0.00363354]
[1765982531673,0.001,87574.0,87573.0,0.24512605]
[1765982531872,0.001,87574.0,87573.0,0.40366953]
[1765982533629,0.01141591,87597.0,87585.0,0.01141748]
[1765982533798,0.228329,87593.0,87591.0,0.01141669]
[1765982534030,0.01141578,87598.0,87590.0,0.01141682]
[1765982534205,0.01141591,87597.0,87593.0,0.01141643]
[1765982534405,0.01141591,87597.0,87591.0,0.24006875]